Cogmind - Beta 10.2 @@@ ROGUE MODE // 2021.06.09 @ 04:13:36 Player: The Scout Result: Destroyed by G-34 Mercenary with Small Laser Performance ------------- Evolutions (0) 0 Regions Visited (1) 200 Robots Destroyed (23) 115 Value Destroyed (585) 585 Prototype IDs (2) 40 Alien Tech Used (0) 0 Bonus (0) 0 TOTAL SCORE: 940 Bonus ------- None Cogmind --------- Core Integrity 0/250 Matter 300/300 Energy 100/100 System Corruption 3% Temperature Cool (6) Movement Core (300) Ox5 Location -10/Materials Parts ------- > --- POWER (1) -------- (None) > --- PROPULSION (2) --- (None) > --- UTILITY (2) ------ Large Storage Unit > --- WEAPON (2) ------- (None) > --- INVENTORY (10) --- Improved Heat Sink Large Storage Unit Structural Scanner Visual Processing Unit Sensor Array Assault Rifle Datajack Peak State ------------ > --- POWER ------------ Light Nuclear Core > --- PROPULSION ------- Aluminum Leg Aluminum Leg > --- UTILITY ---------- Improved Heat Sink Large Storage Unit > --- WEAPON ----------- Medium Laser Particle Gun > --- INVENTORY -------- Ion Engine Large Storage Unit Visual Processing Unit Sensor Array Assault Rifle Datajack [Rating: 12] Favorites ----------- Power Ion Engine Engine Ion Engine Power Core Light Nuclear Core Propulsion Aluminum Leg Leg Aluminum Leg Utility Small Storage Unit Device Sensor Array Storage Small Storage Unit Hackware Hacking Suite Weapon Assault Rifle Energy Gun Medium Laser Energy Cannon Beam Cannon Ballistic Gun Assault Rifle Special Melee Weapon Datajack Build | -11 -10 ------- Run | Scr Mat Slots Evolved . | . . Power . | . . Propulsion . | . . Utility . | . . Weapon . | . . Parts Attached 23 | 6 17 Power 3 | 1 2 Engine 2 | 1 1 Core 1 | . 1 Reactor . | . . Propulsion 3 | 2 1 Treads . | . . Leg 3 | 2 1 Wheel . | . . Hover . | . . Flight . | . . Utility 7 | 1 6 Device 3 | . 3 Storage 3 | 1 2 Processor . | . . Hackware 1 | . 1 Protection . | . . Artifact . | . . Weapon 10 | 2 8 Energy Gun 5 | 1 4 Energy Cannon 1 | . 1 Ballistic Gun 1 | 1 . Ballistic Cannon . | . . Launcher . | . . Special Weapon . | . . Impact Weapon . | . . Slashing Weapon . | . . Piercing Weapon . | . . Special Melee Weapon 3 | . 3 Unidentified Prototypes . | . . Parts Lost 9 | . 9 Power 2 | . 2 Propulsion 2 | . 2 Utility 1 | . 1 Weapon 4 | . 4 Highest Loss Streak 6 | . 6 Average Slot Usage (%) 91 | . 91 Engine 7 | . 7 Core 6 | . 6 Leg 27 | . 27 Device 8 | . 8 Storage 13 | . 13 Energy Gun 9 | . 9 Energy Cannon 3 | . 3 Ballistic Gun 7 | . 7 Special Melee Weapon 4 | . 4 Naked Turns . | . . Heaviest Build 28 | 13 28 Greatest Support 20 | 20 20 Greatest Overweight (x) 8 | . 8 Average Overweight (x) . | . . Largest Inventory Capacity 10 | 6 10 Average Capacity 7 | 5 7 Most Carried 8 | 3 8 Average Carried 4 | 1 4 Final Capacity 10 | 6 10 Final Carried 7 | 1 7 Class Distribution -------------------- 100% | Mutant Dominant Class ---------------- Mutant | -10/Materials Resources | -11 -10 ----------- Run | Scr Mat Matter Collected 617 | 272 345 Remotely . | . . Salvage Created 819 | 95 724 Parts 55 | 2 53 Haulers Intercepted . | . . Recyclers Shooed . | . . Parts Field Recycled . | . . Retrieved Matter . | . . Parts Self-Destructed . | . . Prevented . | . . Kills | -11 -10 ------- Run | Scr Mat Combat Hostiles Destroyed 16 | . 16 Guns 15 | . 15 Classes Destroyed 6 | 1 5 Worker 1 | . 1 Recycler 1 | 1 . Operator 2 | . 2 Watcher 3 | . 3 Swarmer 3 | . 3 Grunt 13 | . 13 Best Kill Streak 3 | 1 3 Combat Bots Only 3 | . 3 Max Kills in Single Turn 2 | 1 2 Gunslinging . | . . Exploded . | . . Melee . | . . Uniques/NPCs Destroyed . | . . Combat | -11 -10 -------- Run | Scr Mat Damage Taken 974 | . 974 Core 261 | . 261 Absorbed by Shields . | . . Core Remaining (%) 100 | 100 . Volleys Fired 69 | 4 65 Largest 2 | 2 2 Hottest 115 | 70 115 Shots Fired 109 | 8 101 Gun 106 | 8 98 Cannon 3 | . 3 Launcher . | . . Special . | . . Kinetic 52 | 4 48 Thermal 57 | 4 53 Explosive . | . . Electromagnetic . | . . Robot Hit Streak 16 | 5 16 Robot Miss Streak 4 | . 4 Penetration Max . | . . Secondary Targets . | . . Shots Hit Robots 88 | 5 83 Core Hits 37 | 2 35 Critical Hits . | . . Critical Kills . | . . Critical Parts Destroyed . | . . Melee Attacks 12 | . 12 Impact . | . . Slashing . | . . Piercing . | . . Sneak Attacks 7 | . 7 Combat Hostiles . | . . Follow-up Attacks . | . . Damage Inflicted 1010 | 63 947 Guns 976 | 63 913 Cannons 34 | . 34 Explosions . | . . Melee . | . . Ramming . | . . Kinetic 427 | 25 402 Thermal 583 | 38 545 Explosive . | . . Electromagnetic . | . . Impact . | . . Slashing . | . . Piercing . | . . Highest Corruption 3 | . 3 Average Corruption 2 | . 2 Corruption Purged . | . . Effects 25 | . 25 Message Errors 7 | . 7 Matter Fused 7 | . 7 Heat Flow Errors 1 | . 1 Energy Discharges 1 | . 1 Data Loss (minor) 4 | . 4 Targeting Errors 5 | . 5 Overload Shots . | . . Overflow Damage . | . . Projectiles . | . . Explosions . | . . Melee . | . . Knockbacks . | . . Impact . | . . Kinetic . | . . Secondary . | . . Self-Inflicted Damage . | . . Shots . | . . Rammed . | . . Targets Rammed . | . . Kicked . | . . Crushed . | . . Highest Temperature 359 | 36 359 Average Temperature 66 | 19 70 Received Heat Transfer 489 | . 489 Siege Activations . | . . Robots Corrupted . | . . Combat Hostiles . | . . Parts Fried 1 | . 1 Impact Corruptions . | . . Robots Melted 1 | . 1 Combat Hostiles 1 | . 1 Parts Melted 1 | . 1 Heat Transferred 1591 | 111 1480 Parts Sabotaged . | . . Parts Stolen . | . . Parts Stripped . | . . Power Chain Reactions . | . . Missiles Intercepted . | . . Alert | -11 -10 ------- Run | Scr Mat Peak Influence 224 | 5 224 Initial 3 | . 3 Average 90 | 1 95 Maximum Alert Level 1 | . 1 Low Security (%) 96 | 100 95 Level 1 3 | . 4 Level 2 . | . . Level 3 . | . . Level 4 . | . . Level 5 . | . . High Security . | . . Max Security . | . . Squads Dispatched 7 | . 7 Investigation 4 | . 4 Extermination . | . . Reinforcement 3 | . 3 Assault . | . . Garrison . | . . Intercept . | . . Construction Impeded . | . . Haulers Reinforced . | . . Stealth | -11 -10 --------- Run | Scr Mat Distress Signals . | . . Communications Jammed . | . . Distress Signals . | . . Times Spotted 39 | . 39 Peak Tracking Total 5 | . 5 Tactical Retreats 2 | . 2 Traps | -11 -10 ------- Run | Scr Mat Traps Triggered 2 | . 2 Indirectly . | . . Trap Hack Attempts 120 | . 120 Triggered . | . . Disarmed . | . . Reprogrammed 13 | . 13 Reused 1 | . 1 Traps Extracted . | . . Installed . | . . Triggered 1 | . 1 Machines | -11 -10 ---------- Run | Scr Mat Machines Disabled . | . . Max in Single Turn . | . . Machines Sabotaged . | . . Garrisons Compromised . | . . Overloaded Fab Kills . | . . Fab Network Shutdowns . | . . Hacking | -11 -10 --------- Run | Scr Mat Machines Accessed 8 | . 8 Terminals 5 | . 5 Fabricators . | . . Repair Stations 1 | . 1 Recycling Units 2 | . 2 Scanalyzers . | . . Garrison Access . | . . Total Hacks 36 | . 36 Successful 19 | . 19 Failed 17 | . 17 Catastrophic 4 | . 4 Database Lockouts . | . . Manual . | . . Terminals 24 | . 24 Fabricators . | . . Repair Stations 5 | . 5 Recycling Units 7 | . 7 Scanalyzers . | . . Garrison Access . | . . Terminal Hacks 11 | . 11 Record 5 | . 5 Prototype ID Bank 1 | . 1 Emergency Access Points 1 | . 1 Locate Traps 1 | . 1 Recall Investigation 1 | . 1 Hauler Manifests 1 | . 1 Zone Layout 1 | . 1 Fabricator Hacks . | . . Repair Station Hacks 2 | . 2 Scan Component 1 | . 1 Repair 1 | . 1 Recycling Unit Hacks 6 | . 6 Recycle Component 1 | . 1 Process 1 | . 1 Report Inventory 3 | . 3 Retrieve Matter 1 | . 1 Scanalyzer . | . . Garrison Access Hacks . | . . Unauthorized Hacks . | . . Terminals . | . . Fabricators . | . . Repair Stations . | . . Recycling Units . | . . Scanalyzers . | . . Garrison Access . | . . Data Cores Recovered . | . . Used . | . . Hacking Detections 8 | . 8 Full Trace Events 7 | . 7 Feedback Events . | . . Feedback Blocked . | . . Robot Schematics Acquired . | . . Robots Built . | . . Matter . | . . Time . | . . Total Robot Build Rating . | . . Part Schematics Acquired . | . . Parts Built . | . . Matter . | . . Time . | . . Total Part Build Rating . | . . Parts Repaired 1 | . 1 Time 26 | . 26 Parts Recycled 1 | . 1 Recycled Matter 228 | . 228 Retrieved Matter 425 | . 425 Retrieved Components . | . . Parts Scanalyzed . | . . Part Schematics Acquired . | . . Parts Damaged . | . . Bothacking | -11 -10 ------------ Run | Scr Mat Used RIF Installer . | . . Robots Hacked 5 | . 5 Non-combat 4 | . 4 Combat 1 | . 1 Robot Hacks Applied 6 | . 6 parse_system 2 | . 2 no_distress 3 | . 3 check_alert 1 | . 1 Relay Couplers Released . | . . Robots Rewired . | . . Allies Hacked . | . . Hacks Repelled . | . . Allies | -11 -10 -------- Run | Scr Mat Total Allies . | . . Largest Group . | . . Highest-Rated Group . | . . Highest-Rated Ally . | . . Total Orders . | . . Ally Attacks . | . . Total Damage . | . . Kills . | . . Allies Corrupted . | . . Allies Melted . | . . Intel | -11 -10 ------- Run | Scr Mat Robot Analysis Total . | . . Derelict Logs Recovered . | . . Drone Launches . | . . Drone Recoveries . | . . Exploration | -11 -10 ------------- Run | Scr Mat Turns Passed 2304 | 117 2187 Spaces Moved 1205 | 81 1124 Core 13 | 7 6 Treads . | . . Legs 1192 | 74 1118 Wheels . | . . Hover . | . . Flight . | . . Fastest Speed 50 | 50 120 Average Speed 134 | 113 135 Slowest Speed 450 | 120 450 Overloaded Moves . | . . Propulsion Burnouts . | . . Robots Hopped . | . . Cave-ins Triggered . | . . Exploration Rate (%) 51 | 4 98 Regions Visited 1 Branch Regions . Pre-discovered Areas . | . . Known Exits Taken . | . . Unknown Exits Taken 1 | 1 . Scrap Searched . | . . Spaces Dug . | . . Terrain Destroyed . | . . Melee . | . . Projectile . | . . AOE . | . . Terrain Rammed . | . . Walls Destroyed . | . . Machines Disabled . | . . Actions | -11 -10 --------- Run | Scr Mat Total 1777 | 97 1680 Wait 303 | . 303 Move 1204 | 80 1124 Hop . | . . Pick Up 28 | 7 21 Fast Attach . | . . Attach 23 | 6 17 Detach 9 | . 9 Swap . | . . Drop 9 | . 9 Fire 69 | 4 65 Melee 12 | . 12 Ram . | . . Kick . | . . Crush . | . . Escape Stasis . | . . Rewire . | . . Trap 120 | . 120 Miscellaneous . | . . Route ------- -11/Scrapyard -10/Materials (discovered 5 exits: [*Mat x3] / [*Min x2]) History --------- Turn | Location | Event 3 | -11/Scrapyard | Discovered new exit (range 15) 118 | -11/Scrapyard | Entered Materials 309 | -10/Materials | Build established: Mutant 747 | -10/Materials | Repaired Aluminum Leg 960 | -10/Materials | Discovered new exit (range 4) 1152 | -10/Materials | Discovered new exit (range 9) 1205 | -10/Materials | Core integrity fell below 50% 1224 | -10/Materials | Discovered new exit (range 19) 1537 | -10/Materials | Discovered new exit (range 8) 1980 | -10/Materials | Discovered new exit (range 6) 2303 | -10/Materials | Core integrity fell below 20% 2305 | -10/Materials | Destroyed by G-34 Mercenary with Small Laser Last Messages --------------- >>Recycling(Process) Analyzing inventory... Recycling at 100% efficiency: Heat Sink (10) Hover Unit (8) Aluminum Leg (39) Aluminum Leg (28) Aluminum Leg (44) Wheel (12) Aluminum Leg (44) Aluminum Leg (27) Sml. Laser (16) >>Retrieve(Matter) Matter ejected: 425 02238_ Acquired 10 matter. 02278_ Aluminum Leg destroyed. 02283_ Particle Gun destroyed. 02294_ Beam Cannon destroyed. 02298_ Hacking Suite destroyed. 02301_ Ion Engine destroyed. Map ----- +----------------------------------------------------+ | + % #?????????# # # #??????????? | | ##+######?????#!!!!//# # T """" #??????????? | | = #?????#!!!!//# # """" #??????????? | | """ """ #?????######## # """" ???????????? | | """ """ #????????????# # ????????????? | | """ """ #########????# #############???????????? | | #""!"|""#????# ## #????????????? | | ! # "!"|" #???## ## #????????????? | | ######+## ##### # ! #????????????? | | # #????????????? | | < + """ """ #????????????? | | # """ """ #????????????? | | #/# ### ##### # """ """ #????????????? | | # #?#########???##### # #????????????? | | # #?????????????????# ###########????????????? | | # #?????????????????# #??????????????????????? | | # #?????????????????# #??????????????????????? | | !# #?????????????????# #??????????????????????? | | # #?????????????????# #??????????????????????? | | # #?????????????????# #??????????????????????? | | ### ################### #??????????????????????? | | #??????????????????????? | | #???###########????????? | | #???# #????????? | | ####/#################### ###?# """ #????????? | | """ """ #??????????????#@u #?# """ #????????? | | """ """ #??????????????# #?# """ #????????? | | """ """ #??????????????# #?# ""#????????? | | ^ #??????????????# #?# %Y"#????????? | | #??????????????# #?# ""#????????? | | #??????????????#ggg#?# % #????????? | | ^!#??????????????# g#######+#####????????? | | !!#??????????????# g % #?????????? | | ##" "#####??????????????# #?????????? | | ?#"R"#??????????????????# #?????????? | | ?#"""#????????????????######+######/#####????????? | | ?#####????????????????# % % # #????????? | | ??????????????????????# """"" # #????????? | | #####???????????????### """"" / #????????? | | #???????????????#"" """"" # #????????? | | """ #???????????????#"T # #????????? | | """ #???????????????#"" "" # #????????? | | """ #???????????????### Y" # #????????? | | """ #?????????????????# "" # #????????? | | #?????????????????# # #????????? | | #?????????????????###################????????? | | #####????????????????????????????????????????????? | | | | | | | +----------------------------------------------------+ Best States ------------- Heat Dissipation 39 Energy Generation 14 Energy Capacity 250 Matter Stores 300 Matter Capacity 300 Sight Range 16 Robot Scan Range 10 Terrain Scan Density 10 Evasion (%) 40 Offensive Hacking 10 Item Schematics ----------------- None Robot Schematics ------------------ None Fabricated ------------ Nothing Alien Tech Used ----------------- None Achievements -------------- Hehehe It's Just You Challenges ------------ None Game ------ Seed TeslaTacticalCleaver Manual? 0 Play Time 00:21:11 Cumulative 3.2 hours Start 2021.06.09 @ 03:47:50 End 2021.06.09 @ 04:13:36 Sessions 1 Manual Loads 0 Difficulty Rogue Special Mode None Game No. 14 Rogue 14 Adventurer 0 Explorer 0 Win Type - Total 0 Types 0/0/0/0/0/0/0/0/0 Lore% 2 Gallery% 5 Achievement% 6 Wizard Run 0 Options --------- ASCII 0 Keyboard 0 Movement Numpad Keybinds 0 Fullscreen 2 Font 24/Cog Map View 76x50 Tactical HUD 1 Map Filters NONE Filters NONE Steam 1 RUN: 2eaa7ab0-221a-4f4c-ab98-bf30024ee4c8